bitfinex/quotes_ETHUSD_20260208
["timestamp","ask_amount","ask_price","bid_price","bid_amount"]
[1770545321551,0.94696913,2115.7,2114.5,2.11521166]
[1770545321850,0.94696913,2115.7,2114.5,0.93290196]
[1770545322156,0.94696913,2115.7,2114.5,2.11521058]
[1770545322342,1.18158616,2115.8,2114.6,0.93290196]
[1770545323334,4.72634464,2115.9,2114.8,0.001]
[1770545323549,0.94896913,2115.8,2114.8,0.001]
[1770545325234,0.94696913,2115.5,2114.8,0.001]
[1770545325450,0.98780212,2115.3,2113.8,1.18366863]
[1770545325764,0.98780212,2115.3,2113.8,0.001]
[1770545325966,0.94696913,2114.9,2113.8,0.001]
[1770545327552,0.94696913,2114.7,2113.8,0.001]
[1770545328152,0.94696913,2114.5,2113.8,0.001]
[1770545328456,3.305,2114.6,2113.8,0.001]
[1770545329533,1.1823126,2114.5,2113.8,0.001]
[1770545329727,2.12928173,2114.5,2113.8,0.001]
[1770545332666,1.1823126,2114.5,2113.8,0.001]
[1770545333035,4.48730035,2114.6,2113.8,0.001]
[1770545334148,0.94696913,2114.5,2113.8,0.001]
[1770545334694,0.94696913,2114.3,2112.8,0.93290196]
[1770545334835,0.98780212,2114.3,2112.8,0.93290196]
[1770545335167,0.94696913,2114.3,2112.8,0.93290196]
[1770545335382,0.94696913,2114.3,2112.8,0.91290196]
[1770545336864,1.18248037,2114.2,2112.9,2.11610987]
[1770545337649,1.18248037,2114.2,2113.0,0.001]
[1770545338160,2.1294495,2114.2,2113.0,0.001]
[1770545338542,1.18248037,2114.2,2113.0,0.93390196]
[1770545339439,5.67689061,2114.4,2113.1,2.11599788]
[1770545341362,0.94696913,2114.3,2113.1,1.18309592]
[1770545341982,0.94696913,2114.3,2113.0,0.001]
[1770545341983,0.04083299,2113.8,2113.0,0.001]
[1770545342277,0.94696913,2113.6,2113.0,0.001]
[1770545343972,1.18287201,2113.5,2113.0,0.001]
[1770545346692,2.12167215,2113.5,2113.0,0.001]
[1770545346898,0.93880014,2113.4,2113.0,0.001]
[1770545347049,0.93880014,2113.4,2112.8,0.001]
[1770545348094,0.93880014,2113.4,2112.1,1.18361399]
[1770545348994,2.12189606,2113.1,2112.0,0.001]
[1770545349165,3.307,2113.0,2112.1,0.90037405]
[1770545351185,1.18320791,2112.9,2112.0,0.001]
[1770545351878,1.18320791,2112.9,2112.8,0.001]
[1770545352082,1.18320791,2112.9,2112.0,0.001]
[1770545352674,1.18320791,2112.9,2112.0,0.90137405]
[1770545353257,1.18320791,2112.9,2112.0,2.08503764]
[1770545353894,1.18320791,2112.9,2112.0,2.08508574]
[1770545354099,2.18281335,2112.9,2112.0,0.001]
[1770545354388,4.7323837,2113.4,2112.0,0.001]
[1770545354389,0.99960544,2112.8,2112.0,1.18469294]
[1770545354625,3.308,2112.9,2112.1,0.99875149]
[1770545354798,1.18318503,2113.0,2112.1,0.99875149]
[1770545355092,3.308,2112.9,2112.1,0.99875149]
[1770545355289,4.49118503,2113.0,2112.3,0.99875149]
[1770545357084,4.49118503,2113.0,2112.2,1.18360003]
[1770545357401,5.49079047,2113.0,2112.1,1.18362304]
[1770545358913,5.49079047,2113.0,2112.0,5.73457626]
[1770545359285,0.04083299,2112.8,2112.0,0.001]
[1770545359479,0.99960544,2112.7,2112.0,0.001]
[1770545359724,1.04043843,2112.5,2112.0,0.001]
[1770545359916,3.308,2112.4,2112.0,0.001]
[1770545360405,4.30760544,2112.4,2112.0,0.001]
[1770545360729,0.99960544,2111.8,2110.9,0.001]
[1770545360888,5.49148572,2111.7,2111.1,0.002]
[1770545361086,0.04083299,2111.6,2111.1,0.002]
[1770545361518,1.04043843,2111.6,2111.1,0.002]
[1770545361705,1.04043843,2111.6,2111.1,0.001]
[1770545361912,1.04043843,2111.6,2110.9,0.001]
[1770545363315,0.99960544,2111.4,2110.9,0.001]
[1770545364114,1.18399242,2111.5,2110.9,0.001]
[1770545364311,2.18359786,2111.5,2110.9,0.001]
[1770545364495,2.18359786,2111.5,2111.1,0.001]
[1770545365808,0.04083299,2110.8,2109.6,1.1850035]
[1770545366007,4.30860544,2110.7,2109.7,1.18599691]
[1770545366313,4.30860544,2110.7,2109.7,0.001]
[1770545366314,1.04043843,2110.6,2109.7,0.001]
[1770545366510,0.99960544,2110.9,2109.9,4.73951092]
[1770545366708,3.31,2110.8,2109.9,1.18485974]
[1770545366921,0.99960544,2110.7,2109.7,1.18597541]
[1770545367316,1.18455342,2110.5,2109.7,0.001]
[1770545368095,2.18415886,2110.5,2109.7,0.001]
[1770545368316,0.04083299,2110.3,2109.7,0.001]
[1770545368515,3.31,2110.2,2109.7,0.001]
[1770545370034,3.31,2110.1,2109.7,0.001]
[1770545370199,1.18438506,2110.8,2109.7,0.99975149]
[1770545370400,4.49438506,2110.8,2109.7,0.99975149]
[1770545371505,5.53482349,2110.8,2109.7,0.001]
[1770545371706,4.73730283,2111.0,2109.7,0.99975149]
[1770545371907,3.311,2110.8,2109.9,0.99875149]
[1770545372321,4.49539221,2110.8,2109.9,0.99875149]
[1770545372521,3.311,2110.8,2109.9,0.99875149]
[1770545372721,4.49538734,2110.8,2109.9,0.99875149]
[1770545372912,3.311,2110.8,2109.9,0.99875149]
[1770545373528,4.73637312,2111.4,2109.9,0.99875149]
[1770545373730,3.311,2111.3,2109.9,0.99875149]
[1770545373931,3.35183299,2111.3,2109.9,0.99875149]
[1770545374310,1.18416066,2111.2,2110.0,1.18483412]
[1770545374535,1.18416066,2111.2,2110.1,0.99875149]
[1770545375317,4.53594316,2111.3,2110.1,0.99875149]
[1770545376421,4.53594316,2111.3,2110.2,2.12906032]
[1770545377154,5.51669944,2111.3,2110.2,2.12906032]
[1770545378238,4.49511017,2111.3,2110.3,0.9443385]
[1770545379314,3.311,2111.3,2110.5,0.9443385]
[1770545379521,2.811,2111.3,2110.5,0.9443385]
[1770545381335,2.811,2111.3,2110.6,1.18449729]
[1770545381506,2.811,2111.3,2110.6,2.12883579]
[1770545386025,3.99511965,2111.3,2110.6,2.12883579]
[1770545386842,2.811,2111.3,2110.6,1.18449729]
[1770545388345,2.811,2111.3,2110.5,4.73798919]
[1770545388537,3.99510702,2111.3,2110.5,4.73798919]
[1770545388847,4.9758633,2111.3,2110.5,1.18455342]
[1770545390152,0.002,2111.1,2110.5,1.18455342]
[1770545390354,0.04083299,2111.0,2110.3,1.1846331]
[1770545390656,0.002,2111.1,2110.2,0.001]
[1770545390657,0.98275628,2111.1,2110.2,0.001]
[1770545390821,0.98275628,2111.1,2110.3,1.18463962]
[1770545391018,0.002,2111.1,2110.3,1.18461759]
[1770545391525,0.98275628,2111.1,2110.3,1.18461759]
[1770545391838,0.04083299,2111.0,2110.3,1.18461759]
[1770545392239,0.04083299,2111.0,2110.3,1.18465874]
[1770545392415,1.22515894,2111.0,2110.3,1.18465874]
[1770545392635,1.02158927,2110.7,2110.2,0.001]
[1770545392840,4.29175628,2110.6,2110.2,0.001]
[1770545393120,4.29175628,2110.6,2110.2,9.993e-05]
[1770545393731,3.311,2110.6,2110.2,9.993e-05]
[1770545397259,3.311,2110.6,2110.2,0.94443843]
[1770545399148,3.311,2110.6,2110.3,1.18466568]
[1770545399671,3.311,2110.6,2110.2,1.18478053]
[1770545402351,3.311,2110.6,2110.2,9.993e-05]
[1770545402844,4.49551135,2110.6,2109.9,2.13020326]
[1770545403047,4.49551135,2110.6,2109.9,1.18586476]
[1770545403371,0.04083299,2110.5,2110.4,0.001]
[1770545403568,1.18456136,2110.5,2109.9,0.001]
[1770545403776,3.311,2110.6,2110.1,0.001]
[1770545409689,3.311,2110.6,2110.1,0.97800217]
[1770545410050,3.311,2110.6,2110.2,1.18472182]
[1770545410573,3.311,2110.6,2110.1,2.16273655]
[1770545412089,3.311,2110.6,2110.1,0.97800217]
[1770545412455,3.311,2110.6,2110.1,0.001]
[1770545412886,3.311,2110.6,2110.1,1.18577275]
[1770545413286,3.311,2110.6,2110.1,0.001]
[1770545416459,3.311,2110.6,2110.3,0.001]
[1770545416685,0.002,2110.4,2110.3,0.00010003]
[1770545424264,0.002,2110.8,2110.5,1.18455342]
[1770545424561,0.002,2111.1,2110.6,0.96227167]
[1770545426385,0.002,2111.1,2110.3,0.00010003]
[1770545426386,1.01381223,2111.0,2110.3,0.00010003]
[1770545426722,0.04083299,2110.7,2110.3,1.18473923]
[1770545426880,1.01381223,2111.0,2110.5,1.1845525]
[1770545427081,0.04083299,2111.0,2110.5,1.1845525]
[1770545427606,0.002,2111.1,2110.7,0.96227167]
[1770545428511,0.002,2111.1,2110.8,1.18438506]
[1770545430082,0.002,2111.1,2110.8,2.14665673]
[1770545430507,0.002,2110.9,2110.8,2.14665673]
[1770545431582,0.002,2111.1,2110.9,0.96227167]
[1770545431792,0.002,2111.4,2110.9,0.96227167]
[1770545433707,0.002,2111.4,2111.0,2.14654452]
[1770545433889,0.002,2111.4,2111.1,0.96227167]
[1770545434503,0.002,2112.0,2111.2,0.96227167]
[1770545434697,0.002,2111.9,2111.2,0.96227167]
[1770545435128,0.002,2111.8,2111.0,2.14654452]
[1770545435410,0.002,2111.9,2111.0,2.14654452]
[1770545435625,1.01581223,2111.9,2111.0,2.14654452]
[1770545436098,0.002,2111.8,2111.0,2.14654452]
[1770545436305,0.95765594,2111.8,2111.0,2.14654452]
[1770545436490,0.002,2111.7,2111.0,1.18427285]
[1770545437118,0.002,2111.6,2111.0,1.18427285]
[1770545437320,0.95765594,2111.8,2111.0,1.18427285]
[1770545437523,0.002,2111.7,2111.0,1.18427285]
[1770545437695,0.95765594,2111.7,2111.0,1.18427285]
[1770545437894,0.002,2111.6,2111.0,1.18427285]
[1770545438301,0.95565594,2111.7,2111.0,1.18427285]
[1770545438302,0.002,2111.5,2111.0,1.18427285]
[1770545438501,0.002,2111.6,2111.0,1.18427285]
[1770545439290,0.002,2111.5,2111.0,2.11225234]
[1770545439600,0.04283299,2112.0,2111.0,2.11225234]
[1770545439601,0.95765594,2111.8,2111.0,2.11225234]
[1770545439803,0.002,2111.7,2111.0,2.11225234]
[1770545440305,0.002,2111.6,2111.1,0.92797949]
[1770545440507,0.95765594,2112.0,2111.1,0.92797949]
[1770545440508,0.002,2111.7,2111.1,0.92797949]
[1770545440708,0.002,2111.9,2111.1,0.92797949]
[1770545441097,0.95765594,2112.0,2111.1,0.92797949]
[1770545441416,0.002,2111.9,2111.1,0.92797949]
[1770545441720,0.95765594,2111.9,2111.1,0.92797949]
[1770545442591,0.95765594,2111.9,2111.2,1.18516066]
[1770545442988,0.002,2111.7,2111.2,1.18516066]
[1770545445040,0.002,2111.7,2111.2,0.001]
[1770545445200,0.002,2111.7,2111.2,0.92897949]
[1770545445201,0.002,2111.6,2111.2,0.92897949]
[1770545445393,0.002,2111.6,2111.2,6.18606006]
[1770545446196,0.002,2112.0,2111.4,6.18506006]
[1770545447236,0.002,2112.0,2111.5,2.11197191]
[1770545451339,0.002,2112.0,2111.5,1.18399242]
[1770545453010,0.99848893,2112.0,2111.2,0.001]
[1770545453214,0.95765594,2112.0,2111.2,0.001]
[1770545453538,0.95765594,2112.0,2111.2,1.18516066]
[1770545453735,0.95765594,2112.0,2111.2,7.37022072]
[1770545454512,0.002,2112.0,2111.3,0.92797949]
[1770545454913,0.002,2112.0,2111.4,5.25708057]
[1770545455127,0.002,2112.0,2111.5,0.92797949]
[1770545455644,0.002,2112.0,2111.6,1.18393635]
[1770545455825,0.002,2112.0,2111.7,0.001]
[1770545456137,0.002,2111.8,2111.7,0.001]
[1770545461421,0.002,2111.8,2111.7,9.992e-05]
[1770545464034,0.002,2111.8,2111.2,1.18513622]
[1770545464229,0.82198528,2111.8,2111.2,1.18513622]
[1770545464432,0.82198528,2111.8,2111.2,0.001]
[1770545464627,0.78115229,2111.8,2111.2,0.001]
[1770545465028,0.78115229,2111.8,2111.3,1.18409546]
[1770545465029,0.002,2111.8,2111.3,1.18409546]
[1770545465445,0.002,2111.8,2111.2,1.18511765]
[1770545468255,0.002,2111.8,2111.2,0.001]
[1770545468438,0.78115229,2111.8,2111.2,0.001]
[1770545469037,0.77915229,2111.6,2111.2,0.00010004]
[1770545469234,0.04083299,2111.7,2111.2,0.00010004]
[1770545469442,0.81998528,2111.7,2111.4,0.001]
[1770545469642,0.77915229,2111.7,2111.4,0.001]
[1770545471474,0.002,2111.8,2111.4,0.001]
[1770545471635,0.78115229,2111.8,2111.4,0.001]
[1770545475037,0.78115229,2111.8,2111.4,0.00010306]
[1770545475663,0.002,2111.8,2111.4,0.00010306]
[1770545475868,0.002,2111.8,2111.5,0.91332698]
[1770545476960,0.002,2111.8,2111.4,0.00010306]
[1770545481966,0.78115229,2111.8,2111.2,0.00010004]
[1770545482282,0.78115229,2111.8,2111.4,0.001]
[1770545482470,0.002,2111.6,2111.4,0.001]
[1770545482855,0.002,2111.6,2111.4,0.91432698]
[1770545484643,0.002,2111.6,2111.4,2.09833402]
[1770545490384,0.002,2111.6,2111.4,0.91432698]
[1770545490575,0.002,2111.6,2111.4,2.09837108]
[1770545498285,0.002,2111.6,2111.4,0.001]
[1770545500886,0.78115229,2111.6,2111.2,0.00010004]
[1770545502891,0.78115229,2111.6,2111.0,0.001]
[1770545503096,0.77915229,2111.5,2110.7,1.1843933]
[1770545503262,0.77915229,2111.5,2110.8,1.1843793]
[1770545503606,0.77915229,2111.5,2110.9,1.18432492]
[1770545505080,0.77915229,2111.5,2110.8,1.18438506]
[1770545507184,0.77915229,2111.5,2111.1,0.001]
[1770545507491,0.78115229,2111.4,2111.1,0.00010327]
[1770545508192,0.002,2111.4,2111.1,0.00010327]
[1770545510700,0.78115229,2111.4,2111.1,0.00010327]
[1770545511485,0.002,2111.4,2111.1,0.00010327]
[1770545511670,0.78115229,2111.4,2111.1,0.00010327]
[1770545512273,0.002,2111.4,2111.1,0.00010327]
[1770545513493,0.002,2111.4,2110.9,0.92182268]
[1770545518865,0.002,2111.4,2110.9,0.001]
[1770545519066,0.77915229,2111.1,2110.6,0.001]
[1770545520293,0.002,2111.2,2110.7,1.18440063]
[1770545520488,0.002,2111.2,2110.7,2.10523355]
[1770545520667,0.002,2111.2,2110.7,0.92082268]
[1770545521891,0.82198528,2111.2,2110.6,0.001]
[1770545522272,0.77915229,2110.8,2110.3,0.00010003]
[1770545524299,0.77915229,2110.8,2110.2,1.18472027]
[1770545524897,0.77915229,2110.8,2110.2,0.92082268]
[1770545525313,1.13506711,2110.9,2110.2,0.92082268]
[1770545526095,0.81998528,2110.8,2110.1,0.001]
[1770545526276,0.77915229,2110.6,2110.1,1.18576367]
[1770545526476,4.09015229,2110.8,2110.1,1.18576367]
[1770545526900,4.09015229,2110.8,2110.1,0.93833904]
[1770545528379,4.13098528,2110.8,2110.1,0.93833904]
[1770545528700,0.77915229,2110.7,2110.1,2.12310294]
[1770545528882,0.77915229,2110.7,2110.1,0.93833904]
[1770545529082,0.77915229,2110.7,2110.1,2.12311368]
[1770545529281,0.77915229,2110.7,2110.1,0.93833904]
[1770545530007,3.35183299,2110.8,2110.1,2.12311222]
[1770545530200,3.35183299,2110.8,2110.1,0.93833904]
[1770545530516,0.77915229,2110.7,2110.1,0.001]
[1770545532013,0.78115229,2110.6,2110.3,0.001]
[1770545532316,0.77915229,2110.4,2110.0,0.001]
[1770545534094,0.78115229,2110.6,2110.0,0.001]
[1770545534303,0.35077884,2110.5,2110.0,0.001]
[1770545534506,1.12993113,2110.5,2110.0,0.001]
[1770545534708,0.34996121,2110.4,2110.0,0.001]
[1770545535215,0.77915229,2110.1,2109.7,0.001]
[1770545535412,0.77915229,2110.0,2109.5,0.00011275]
[1770545535912,6.03586254,2109.8,2109.5,0.00011275]
[1770545536112,6.03586254,2109.8,2109.3,0.001]
[1770545536315,0.77915229,2109.7,2109.3,0.001]
[1770545536515,0.81998528,2109.6,2109.3,0.001]
[1770545537016,0.77915229,2109.5,2109.0,0.001]
[1770545537319,0.81998528,2109.5,2109.0,0.001]
[1770545537690,0.81998528,2109.5,2108.7,0.001]
[1770545537691,0.77815229,2109.1,2108.7,0.001]
[1770545537916,0.81898528,2109.1,2108.5,0.001]
[1770545538907,0.81898528,2109.1,2108.2,0.91373718]
[1770545539213,5.29754324,2108.8,2108.0,0.91373718]
[1770545539385,4.09015229,2108.7,2107.9,1.18601306]
[1770545539589,3.312,2108.7,2108.2,2.09957257]
[1770545540221,3.312,2108.7,2108.2,0.91373718]
[1770545540826,3.312,2108.7,2108.1,1.18586833]
[1770545541030,3.312,2108.7,2107.2,0.91373718]
[1770545541031,0.77815229,2108.6,2107.2,0.91373718]
[1770545541328,0.04083299,2108.6,2108.0,2.09969433]
[1770545541537,3.312,2108.7,2108.1,0.91373718]
[1770545543626,3.312,2108.7,2108.2,0.91373718]
[1770545544130,3.312,2108.7,2108.3,0.001]
[1770545544340,3.312,2108.7,2108.0,0.91373718]
[1770545544542,3.312,2108.7,2108.1,2.0996382]
[1770545544697,3.312,2108.7,2108.1,0.91373718]
[1770545545018,3.312,2108.7,2108.1,2.09961826]
[1770545545322,3.312,2108.7,2108.2,0.91373718]
[1770545548271,3.312,2108.7,2108.0,2.10068427]
[1770545548272,0.04083299,2108.5,2108.0,2.10068427]
[1770545548536,0.04083299,2108.5,2108.0,0.58045436]
[1770545548739,3.312,2108.7,2108.0,0.58045436]
[1770545551343,0.04083299,2108.6,2108.0,1.76637277]
[1770545551511,0.04083299,2108.6,2108.1,0.91373718]
[1770545551717,0.04083299,2108.6,2108.1,0.58166125]
[1770545552914,3.312,2108.7,2108.1,0.58166125]
[1770545553122,3.312,2108.7,2108.3,0.91373718]
[1770545553333,3.312,2108.7,2108.3,0.58320294]
[1770545553729,3.312,2108.7,2108.2,1.18584574]
[1770545554440,6.48,2109.3,2108.6,0.91373718]
[1770545554646,0.04083299,2109.2,2108.6,0.91373718]
[1770545555028,0.90998633,2109.4,2108.6,0.91373718]
[1770545555343,0.95081932,2109.4,2108.7,1.18556456]
[1770545555712,0.95081932,2109.4,2108.3,0.98881106]
[1770545555713,0.95194097,2109.2,2108.3,0.98881106]
[1770545555948,0.99277396,2109.1,2108.4,1.18570803]
[1770545556446,0.99277396,2109.1,2108.5,1.18567687]
[1770545557354,0.99277396,2109.1,2108.4,4.74291885]
[1770545557547,0.002,2108.7,2108.4,4.74291885]
[1770545558249,0.002,2108.7,2108.4,1.18573325]
[1770545559451,0.002,2108.7,2108.4,2.17454431]
[1770545559636,0.04083299,2109.1,2108.6,0.98881106]
[1770545561149,0.95194097,2109.3,2108.6,0.98881106]
[1770545561462,0.95194097,2109.3,2108.7,1.18556456]
[1770545562021,0.99277396,2109.1,2108.4,1.18569112]
[1770545562221,0.04083299,2108.8,2108.4,1.18569112]
[1770545562620,0.04083299,2108.8,2108.5,1.18566993]
[1770545563043,0.04083299,2108.8,2108.6,1.1856154]
[1770545563250,0.99277396,2109.1,2108.6,1.18561381]
[1770545564055,0.99277396,2109.1,2108.3,2.17560055]
[1770545564549,0.04083299,2109.0,2108.3,0.98981106]
[1770545565026,6.48,2109.3,2108.3,0.98981106]
[1770545565221,0.99277396,2109.4,2108.3,0.98981106]
[1770545566130,0.04083299,2109.3,2108.5,0.98881106]
[1770545566939,0.04083299,2109.0,2108.4,1.18573325]
[1770545567232,0.99277396,2109.0,2108.4,1.18573325]
[1770545568251,0.99277396,2109.0,2108.0,0.001]
[1770545568252,0.99277396,2108.7,2108.0,0.001]
[1770545568559,3.315,2108.8,2108.1,1.18590105]
[1770545568765,1.22626857,2109.0,2108.2,0.98881106]
[1770545568766,0.04083299,2109.0,2108.2,0.98881106]
[1770545569461,0.04083299,2109.0,2108.5,0.001]
[1770545569653,0.002,2108.9,2108.5,0.001]
[1770545570535,0.04083299,2108.7,2108.5,0.001]
[1770545570738,0.04083299,2108.4,2108.1,1.1858997]
[1770545570943,0.99277396,2108.7,2108.0,0.001]
[1770545570944,0.99277396,2108.7,2108.2,1.18583649]
[1770545571154,0.04083299,2108.7,2108.2,1.18583649]
[1770545571361,0.04083299,2108.7,2108.1,1.18585785]
[1770545572336,0.04083299,2108.7,2108.2,1.18581409]
[1770545572661,0.04083299,2108.7,2108.1,4.74358764]
[1770545572662,0.99277396,2108.7,2108.1,1.18586027]
[1770545573262,0.99277396,2108.7,2108.2,1.18584224]
[1770545574060,0.95394097,2108.9,2108.2,1.18584224]
[1770545574256,0.002,2108.9,2108.2,2.1746533]
[1770545575766,0.002,2108.9,2108.3,0.98881106]
[1770545576970,0.002,2108.9,2108.4,1.18573325]
[1770545581589,0.002,2108.9,2108.5,0.98881106]
[1770545582091,0.002,2108.9,2108.6,1.18562079]
[1770545582380,0.002,2108.9,2108.6,2.17443185]
[1770545582750,0.04083299,2108.7,2108.4,1.18572516]
[1770545582965,0.04083299,2108.7,2108.4,0.001]
[1770545583182,0.04283299,2108.7,2108.4,1.18670491]
[1770545583346,0.04283299,2108.7,2108.4,0.001]
[1770545583549,0.04283299,2108.7,2108.5,1.18567449]
[1770545583967,0.04283299,2108.7,2108.4,0.001]
[1770545586497,0.002,2108.7,2108.4,0.001]
[1770545588406,0.04083299,2108.6,2108.1,4.7445922]
[1770545588693,0.9263863,2108.6,2108.2,1.18584574]
[1770545589578,0.002,2108.7,2108.2,1.18584574]
[1770545589779,0.04083299,2108.6,2108.2,1.18584574]
[1770545590294,0.04083299,2108.6,2108.1,0.98505447]
[1770545590499,0.002,2108.7,2108.3,0.98405447]
[1770545592594,0.002,2108.7,2108.4,2.16978772]
[1770545592799,0.002,2108.7,2108.4,1.18573325]
[1770545593500,0.92259526,2108.5,2108.0,0.001]
[1770545593688,0.04083299,2108.3,2108.0,1.18695333]
[1770545594016,0.04083299,2108.3,2107.8,1.1860689]
[1770545595481,0.96342825,2108.3,2107.6,4.74464633]
[1770545595678,0.96342825,2108.0,2107.4,0.001]
[1770545595890,0.96342825,2108.0,2107.4,1.18726431]
[1770545596186,0.96342825,2108.0,2107.4,1.18728131]
[1770545596387,0.96342825,2108.0,2107.4,0.001]
[1770545597005,0.04083299,2107.7,2107.4,0.001]
[1770545597214,0.96342825,2108.0,2107.4,0.001]
[1770545597422,0.04083299,2107.6,2107.4,0.001]
[1770545599003,0.04083299,2107.2,2106.7,1.1866464]
[1770545599221,0.04083299,2107.3,2106.8,1.18659435]
[1770545599621,0.04083299,2107.3,2106.9,1.18657505]
[1770545600000,0.04083299,2107.3,2106.6,2.12024311]
[1770545600818,11.22366288,2108.1,2106.7,0.9334967]
[1770545600819,2.10852608,2108.1,2106.7,0.9334967]
[1770545601019,0.92259526,2108.2,2106.8,0.9334967]
[1770545602205,4.54262304,2108.3,2107.0,0.9334967]
[1770545602206,3.35683299,2108.3,2107.0,0.9334967]
[1770545604124,4.27942825,2108.3,2107.2,0.9334967]
[1770545604599,3.35683299,2108.3,2107.2,0.9334967]
[1770545605550,0.002,2108.5,2107.2,0.9334967]
[1770545606034,0.002,2108.5,2107.1,8.15555262]
[1770545606035,0.002,2108.5,2107.4,0.9334967]
[1770545606195,0.002,2108.5,2107.6,0.9334967]
[1770545607928,0.002,2108.3,2107.6,0.9334967]
[1770545608129,0.002,2108.5,2107.8,0.9334967]
[1770545610603,0.002,2108.9,2108.0,0.9334967]
[1770545611228,0.002,2108.9,2108.1,0.9334967]
[1770545611439,0.96342825,2108.8,2107.9,2.11951121]
[1770545613742,0.04083299,2108.5,2107.9,2.11951121]
[1770545614110,0.92259526,2108.7,2107.9,2.11951121]
[1770545615729,0.92259526,2108.7,2107.9,1.18601451]
[1770545617467,0.002,2108.9,2108.0,0.93182455]
[1770545617607,0.002,2108.9,2108.2,0.93182455]
[1770545619437,0.002,2108.9,2108.3,2.11761404]
[1770545620422,0.98261917,2108.6,2108.2,1.18684493]
[1770545623940,1.02345216,2108.5,2108.1,4.50089941]
[1770545628345,0.98461917,2108.7,2108.1,4.50089941]
[1770545628566,0.98461917,2108.7,2108.2,0.93182455]
[1770545628567,0.002,2108.7,2108.2,0.93182455]
[1770545630276,0.002,2108.7,2108.3,2.11761404]
[1770545630768,0.002,2108.7,2108.4,0.93182455]
[1770545631071,0.002,2108.9,2108.4,0.93182455]
[1770545631261,0.002,2109.1,2108.4,0.93182455]
[1770545632243,0.002,2109.1,2108.6,0.93182455]
[1770545632449,0.002,2109.1,2108.6,4.24682455]
[1770545633479,0.002,2108.7,2108.6,4.24682455]
[1770545633683,0.002,2109.1,2108.6,4.24682455]
[1770545633851,0.002,2108.9,2108.6,4.24682455]
[1770545634182,0.002,2109.1,2108.7,1.18556456]
[1770545636261,1e-08,2110.0,2109.1,0.93182455]
[1770545636479,0.34870894,2110.1,2109.3,0.93182455]
[1770545638283,0.34870894,2110.1,2109.4,2.11699568]
[1770545639156,0.34870894,2110.1,2109.5,0.93182455]
[1770545640013,0.04083299,2110.0,2109.4,4.49917113]
[1770545640190,0.04083299,2110.0,2109.5,0.93182455]
[1770545640493,0.38954193,2110.1,2109.6,1.18505877]
[1770545641490,0.38954193,2110.1,2109.4,0.93182455]
[1770545641780,0.04083299,2109.8,2109.2,1.18523893]
[1770545642083,0.04083299,2109.5,2109.2,1.18528438]
[1770545642282,0.04083299,2109.5,2108.7,4.74224304]
[1770545642283,0.98261917,2109.4,2108.7,4.74224304]
[1770545642579,0.98261917,2109.4,2108.6,4.74240507]
[1770545642580,0.04083299,2109.2,2108.6,4.74240507]
[1770545642880,0.04083299,2109.2,2108.7,1.18556456]
[1770545644966,0.04083299,2109.2,2108.6,4.74240507]
[1770545645164,0.04083299,2109.2,2108.5,4.49963704]
[1770545645368,1.02345216,2109.2,2108.5,4.49963704]
[1770545645661,0.04083299,2109.2,2108.8,0.001]
[1770545645866,0.002,2109.0,2108.8,0.001]
[1770545652187,0.002,2109.0,2108.8,1.18650834]
[1770545654192,0.002,2109.0,2108.8,0.001]
[1770545658899,0.002,2109.0,2108.9,0.001]
[1770545665492,0.91274328,2108.8,2108.2,0.001]
[1770545665801,0.91274328,2108.8,2108.3,1.1857751]
[1770545666021,0.91274328,2108.8,2108.2,0.001]
[1770545666187,0.04083299,2108.6,2108.2,0.001]
[1770545666512,0.95357627,2108.6,2108.2,0.001]
[1770545667182,0.91274328,2108.8,2108.2,1.18683786]
[1770545667386,0.91274328,2108.8,2108.2,0.001]
[1770545667602,2.09825683,2108.8,2108.2,0.001]
[1770545668010,0.91274328,2108.8,2108.2,0.001]
[1770545668181,1.22632521,2108.9,2108.2,0.97072235]
[1770545669020,0.002,2109.0,2108.2,0.97072235]
[1770545669203,0.002,2109.2,2108.3,0.96972235]
[1770545669381,0.002,2109.2,2108.7,0.96972235]
[1770545670209,0.002,2109.2,2108.6,1.18562079]
[1770545672815,0.002,2109.2,2108.9,0.001]
[1770545673315,0.002,2109.0,2108.9,0.001]
[1770545677704,0.002,2109.0,2108.9,1.18645213]
[1770545677893,0.002,2109.0,2108.9,0.001]
[1770545689628,0.98217872,2108.8,2108.2,0.001]
[1770545689927,0.98217872,2108.8,2108.4,1.18572945]
[1770545690437,0.98217872,2108.8,2108.3,1.18574691]
[1770545691004,0.98217872,2108.8,2108.2,4.74424186]
[1770545691931,0.98417872,2109.0,2108.3,0.94874241]
[1770545692105,0.04283299,2109.0,2108.3,0.94874241]
[1770545692412,2.1695785,2109.0,2108.3,0.94874241]
[1770545692808,0.94134573,2108.9,2108.2,4.74424186]
[1770545693014,0.98217872,2108.7,2108.2,0.001]
[1770545693603,2.16775545,2108.7,2108.2,0.001]
[1770545694019,0.98217872,2108.7,2108.2,0.001]
[1770545695713,0.94134573,2108.3,2108.2,0.001]
[1770545695948,0.98217872,2108.7,2108.2,0.00010403]
[1770545696111,0.04083299,2108.7,2108.2,0.00010403]
[1770545696526,0.04083299,2108.7,2108.2,0.94884644]
[1770545697047,1.5318018,2108.9,2108.2,0.94884644]
[1770545697226,0.04083299,2108.7,2108.4,0.001]
[1770545697421,0.94134573,2108.8,2108.4,0.001]
[1770545697652,0.002,2108.8,2108.4,0.001]
[1770545698625,0.002,2108.8,2108.4,0.94974241]
[1770545699925,0.002,2108.8,2108.5,1.18567702]
[1770545700551,0.34629836,2108.9,2108.6,0.94874241]
[1770545700552,0.09663293,2108.9,2108.6,0.94874241]
[1770545700858,0.04083299,2108.8,2108.2,0.00010403]
[1770545701029,0.04083299,2108.8,2108.2,1.18592386]
[1770545701354,0.38797697,2108.8,2108.2,1.18592386]
[1770545701847,0.38797697,2108.8,2108.2,1.18594977]
[1770545702050,0.04083299,2108.5,2108.2,0.00010403]
[1770545702248,0.98217872,2108.5,2108.1,0.001]
[1770545702633,0.98217872,2108.5,2108.1,1.18690148]
[1770545702833,0.94134573,2108.7,2108.1,1.18690148]